[Event "Mitropa Cup 2023 Open selection"]
[Site "Mali Losinj, Croatia"]
[Date "2023.04.11"]
[Round "1.1"]
[White "Baenziger, Fabian"]
[Black "Lagarde, Maxime"]
[Result "1/2-1/2"]
[TimeControl "90 min + 30 min after 40 moves + 30 sec increment from move 1"]
[WhiteElo "2409"]
[BlackElo "2579"]

1. d4 {[%clk 01:30:57]} {[%emt 00:00:02]} Nf6 {[%clk 01:30:56]} {[%emt
00:00:04]} 2. c4 {[%clk 01:31:17]} {[%emt 00:00:10]} e6 {[%clk 01:31:22]}
{[%emt 00:00:04]} 3. Nc3 {[%clk 01:31:18]} {[%emt 00:00:29]} d5 {[%clk
01:31:47]} {[%emt 00:00:05]} 4. Nf3 {[%clk 01:30:47]} {[%emt 00:01:01]} Be7
{[%clk 01:32:13]} {[%emt 00:00:04]} 5. Bf4 {[%clk 01:29:48]} {[%emt 00:01:29]}
O-O {[%clk 01:32:36]} {[%emt 00:00:07]} 6. e3 {[%clk 01:30:14]} {[%emt
00:00:04]} Nbd7 {[%clk 01:33:02]} {[%emt 00:00:05]} 7. a3 {[%clk 01:27:47]}
{[%emt 00:02:58]} c5 {[%clk 01:33:13]} {[%emt 00:00:18]} 8. cxd5 {[%clk
01:25:32]} {[%emt 00:02:45]} Nxd5 {[%clk 01:33:39]} {[%emt 00:00:05]} 9. Nxd5
{[%clk 01:25:55]} {[%emt 00:00:07]} exd5 {[%clk 01:34:05]} {[%emt 00:00:03]} 10.
dxc5 {[%clk 01:25:59]} {[%emt 00:00:26]} Nxc5 {[%clk 01:34:30]} {[%emt
00:00:05]} 11. Be5 {[%clk 01:21:18]} {[%emt 00:05:10]} Bf6 {[%clk 01:34:34]}
{[%emt 00:00:26]} 12. Bxf6 {[%clk 01:18:20]} {[%emt 00:03:29]} Qxf6 {[%clk
01:34:59]} {[%emt 00:00:05]} 13. Qd4 {[%clk 01:18:44]} {[%emt 00:00:05]} Qe7
{[%clk 01:27:14]} {[%emt 00:08:16]} 14. Rd1 {[%clk 01:12:44]} {[%emt 00:06:30]}
Be6 {[%clk 01:25:40]} {[%emt 00:02:03]} 15. Be2 {[%clk 01:10:22]} {[%emt
00:02:53]} Rfc8 {[%clk 01:20:37]} {[%emt 00:05:33]} 16. O-O {[%clk 01:08:55]}
{[%emt 00:01:56]} Nb3 {[%clk 01:18:54]} {[%emt 00:02:13]} 17. Qa4 {[%clk
01:04:21]} {[%emt 00:05:04]} Nc5 {[%clk 01:19:17]} {[%emt 00:00:07]} 18. Qd4
{[%clk 01:04:02]} {[%emt 00:00:49]} Nb3 {[%clk 01:08:48]} {[%emt 00:10:58]} 19.
Qa4 {[%clk 00:47:07]} {[%emt 00:17:26]} Nc5 {[%clk 01:09:14]} {[%emt 00:00:04]}
20. Qd4 {[%emt 00:00:06]} 1/2-1/2

[Event "Mitropa Cup 2023 Open selection"]
[Site "Mali Losinj, Croatia"]
[Date "2023.04.11"]
[Round "1.2"]
[White "Boyer, Mahel"]
[Black "Gallagher, Joseph G."]
[Result "1-0"]
[TimeControl "90 min + 30 min after 40 moves + 30 sec increment from move 1"]
[WhiteElo "2463"]
[BlackElo "2444"]

1. e4 {[%clk 01:30:25]} {[%emt 00:00:35]} c5 {[%clk 01:30:45]} {[%emt
00:00:16]} 2. Nf3 {[%clk 01:30:36]} {[%emt 00:00:18]} d6 {[%clk 01:30:56]}
{[%emt 00:00:20]} 3. d4 {[%clk 01:30:33]} {[%emt 00:00:33]} cxd4 {[%clk
01:31:18]} {[%emt 00:00:08]} 4. Nxd4 {[%clk 01:30:56]} {[%emt 00:00:07]} Nf6
{[%clk 01:31:42]} {[%emt 00:00:06]} 5. Nc3 {[%clk 01:31:18]} {[%emt 00:00:07]}
a6 {[%clk 01:32:04]} {[%emt 00:00:09]} 6. Rg1 {[%clk 01:31:13]} {[%emt
00:00:34]} e5 {[%clk 01:29:10]} {[%emt 00:03:24]} 7. Nb3 {[%clk 01:31:24]}
{[%emt 00:00:19]} h5 {[%clk 01:26:36]} {[%emt 00:03:06]} 8. Bg5 {[%clk
01:23:10]} {[%emt 00:08:42]} Be7 {[%clk 01:24:49]} {[%emt 00:02:18]} 9. Qd2
{[%clk 01:21:31]} {[%emt 00:02:08]} Be6 {[%clk 01:23:49]} {[%emt 00:01:31]} 10.
f4 {[%clk 01:19:15]} {[%emt 00:02:46]} Qb6 {[%clk 01:06:35]} {[%emt 00:17:44]}
11. O-O-O {[%clk 01:13:04]} {[%emt 00:06:41]} Nbd7 {[%clk 00:59:48]} {[%emt
00:07:17]} 12. Be2 {[%clk 01:10:09]} {[%emt 00:03:24]} Rc8 {[%clk 00:57:15]}
{[%emt 00:03:04]} 13. Kb1 {[%clk 01:05:12]} {[%emt 00:05:27]} exf4 {[%clk
00:42:47]} {[%emt 00:14:58]} 14. Bxf4 {[%clk 00:58:07]} {[%emt 00:07:35]} Ne5
{[%clk 00:41:47]} {[%emt 00:01:30]} 15. h3 {[%clk 00:53:25]} {[%emt 00:05:12]}
h4 {[%clk 00:32:12]} {[%emt 00:10:06]} 16. Nd4 {[%clk 00:53:26]} {[%emt
00:00:29]} Qa5 {[%clk 00:31:35]} {[%emt 00:01:06]} 17. Nxe6 {[%clk 00:46:38]}
{[%emt 00:07:17]} fxe6 {[%clk 00:32:02]} {[%emt 00:00:04]} 18. Qd4 {[%clk
00:45:26]} {[%emt 00:01:39]} Qc5 {[%clk 00:26:22]} {[%emt 00:06:11]} 19. Qd2
{[%clk 00:23:48]} {[%emt 00:22:07]} b5 {[%clk 00:25:29]} {[%emt 00:01:24]} 20.
a3 {[%clk 00:23:59]} {[%emt 00:00:18]} b4 {[%clk 00:20:14]} {[%emt 00:05:46]}
21. axb4 {[%clk 00:22:40]} {[%emt 00:01:48]} Qxb4 {[%clk 00:20:41]} {[%emt
00:00:04]} 22. Nd5 {[%clk 00:12:13]} {[%emt 00:10:56]} Qxd2 {[%clk 00:20:47]}
{[%emt 00:00:24]} 23. Nxf6+ {[%clk 00:12:14]} {[%emt 00:00:29]} Bxf6 {[%clk
00:20:14]} {[%emt 00:01:03]} 24. Rxd2 {[%clk 00:11:21]} {[%emt 00:01:22]} Rc6
{[%clk 00:20:37]} {[%emt 00:00:08]} 25. c3 {[%clk 00:09:01]} {[%emt 00:02:49]}
Ke7 {[%clk 00:20:07]} {[%emt 00:01:01]} 26. Kc2 {[%clk 00:09:11]} {[%emt
00:00:19]} Ra8 {[%clk 00:14:44]} {[%emt 00:05:53]} 27. Ra1 {[%clk 00:09:03]}
{[%emt 00:00:38]} g5 {[%clk 00:10:10]} {[%emt 00:05:04]} 28. Bh2 {[%clk
00:08:55]} {[%emt 00:00:38]} a5 {[%clk 00:04:45]} {[%emt 00:05:56]} 29. Ra4
{[%clk 00:08:20]} {[%emt 00:01:05]} Nf7 {[%clk 00:04:06]} {[%emt 00:01:09]} 30.
Rd1 {[%clk 00:08:15]} {[%emt 00:00:34]} Nd8 {[%clk 00:00:54]} {[%emt 00:03:42]}
31. e5 {[%clk 00:08:33]} {[%emt 00:00:13]} Bxe5 {[%clk 00:00:45]} {[%emt
00:00:39]} 32. Bxe5 {[%clk 00:08:57]} {[%emt 00:00:06]} dxe5 {[%clk 00:01:10]}
{[%emt 00:00:04]} 33. Bf3 {[%clk 00:09:26]} {[%emt 00:00:02]} Rac8 {[%clk
00:00:43]} {[%emt 00:00:57]} 34. Bxc6 {[%clk 00:09:28]} {[%emt 00:00:28]} Nxc6
{[%clk 00:01:12]} {[%emt 00:00:01]} 35. Rc4 {[%clk 00:09:48]} {[%emt 00:00:10]}
Rc7 {[%clk 00:00:37]} {[%emt 00:01:06]} 36. Rc5 {[%clk 00:10:09]} {[%emt
00:00:08]} Rc8 {[%clk 00:00:42]} {[%emt 00:00:26]} 37. Kb1 {[%clk 00:09:16]}
{[%emt 00:01:22]} Rc7 {[%clk 00:00:39]} {[%emt 00:00:34]} 38. b4 {[%clk
00:09:02]} {[%emt 00:00:42]} axb4 {[%clk 00:00:59]} {[%emt 00:00:11]} 39. cxb4
{[%clk 00:09:29]} {[%emt 00:00:03]} Rc8 {[%clk 00:01:11]} {[%emt 00:00:18]} 40.
Rdc1 {[%clk 00:37:21]} {[%emt 00:02:38]} Kd7 {[%clk 00:31:36]} {[%emt
00:00:06]} 41. b5 {[%clk 00:37:28]} {[%emt 00:00:22]} Ne7 {[%clk 00:30:43]}
{[%emt 00:01:23]} 42. Rxc8 {[%clk 00:37:54]} {[%emt 00:00:04]} Nxc8 {[%clk
00:31:10]} {[%emt 00:00:03]} 43. Rxc8 {[%clk 00:37:41]} {[%emt 00:00:42]} Kxc8
{[%clk 00:31:36]} {[%emt 00:00:05]} 44. Kc2 {[%clk 00:38:10]} {[%emt 00:00:01]}
Kc7 {[%clk 00:31:43]} {[%emt 00:00:22]} 45. Kd3 {[%clk 00:38:36]} {[%emt
00:00:04]} Kb6 {[%clk 00:30:43]} {[%emt 00:01:30]} 46. Ke4 {[%clk 00:38:58]}
{[%emt 00:00:08]} Kxb5 {[%clk 00:31:05]} {[%emt 00:00:08]} 47. Kxe5 {[%clk
00:39:26]} {[%emt 00:00:02]} 1-0

[Event "Mitropa Cup 2023 Open selection"]
[Site "Mali Losinj, Croatia"]
[Date "2023.04.11"]
[Round "1.3"]
[White "Fecker, Noah"]
[Black "Degraeve, Remy"]
[Result "0-1"]
[TimeControl "90 min + 30 min after 40 moves + 30 sec increment from move 1"]
[WhiteElo "2388"]
[BlackElo "2443"]

1. e4 {[%clk 01:30:57]} {[%emt 00:00:02]} c5 {[%clk 01:30:44]} {[%emt
00:00:17]} 2. Nf3 {[%clk 01:31:21]} {[%emt 00:00:05]} Nc6 {[%clk 01:31:06]}
{[%emt 00:00:08]} 3. Bb5 {[%clk 01:31:46]} {[%emt 00:00:06]} e6 {[%clk
01:31:16]} {[%emt 00:00:20]} 4. Bxc6 {[%clk 01:32:04]} {[%emt 00:00:12]} bxc6
{[%clk 01:31:40]} {[%emt 00:00:06]} 5. d3 {[%clk 01:31:53]} {[%emt 00:00:41]}
Ne7 {[%clk 01:31:56]} {[%emt 00:00:13]} 6. Nbd2 {[%clk 01:30:56]} {[%emt
00:01:28]} f6 {[%clk 01:31:54]} {[%emt 00:00:31]} 7. Nh4 {[%clk 01:28:56]}
{[%emt 00:02:30]} d5 {[%clk 01:32:02]} {[%emt 00:00:22]} 8. f4 {[%clk
01:28:57]} {[%emt 00:00:29]} c4 {[%clk 01:31:44]} {[%emt 00:00:48]} 9. dxc4
{[%clk 01:28:55]} {[%emt 00:00:33]} Qb6 {[%clk 01:32:09]} {[%emt 00:00:05]} 10.
Qf3 {[%clk 01:27:06]} {[%emt 00:02:18]} Rg8 {[%clk 01:32:26]} {[%emt 00:00:13]}
11. Rf1 {[%clk 01:04:54]} {[%emt 00:22:42]} Ba6 {[%clk 01:15:06]} {[%emt
00:17:50]} 12. Qf2 {[%clk 00:38:44]} {[%emt 00:26:40]} O-O-O {[%clk 01:00:56]}
{[%emt 00:14:40]} 13. Qxb6 {[%clk 00:28:49]} {[%emt 00:10:25]} axb6 {[%clk
01:01:08]} {[%emt 00:00:18]} 14. Nhf3 {[%clk 00:28:02]} {[%emt 00:01:18]} dxe4
{[%clk 00:57:44]} {[%emt 00:03:54]} 15. Nxe4 {[%clk 00:28:20]} {[%emt
00:00:12]} Bxc4 {[%clk 00:58:04]} {[%emt 00:00:09]} 16. Rf2 {[%clk 00:28:06]}
{[%emt 00:00:44]} Nd5 {[%clk 00:52:11]} {[%emt 00:06:23]} 17. b3 {[%clk
00:25:29]} {[%emt 00:03:06]} Ba6 {[%clk 00:52:27]} {[%emt 00:00:14]} 18. Nd4
{[%clk 00:11:10]} {[%emt 00:14:49]} Bb4+ {[%clk 00:46:27]} {[%emt 00:06:30]} 19.
Bd2 {[%clk 00:10:52]} {[%emt 00:00:48]} Bxd2+ {[%clk 00:42:08]} {[%emt
00:04:49]} 20. Rxd2 {[%clk 00:10:10]} {[%emt 00:01:12]} Nxf4 {[%clk 00:40:58]}
{[%emt 00:01:39]} 21. Nxc6 {[%clk 00:06:51]} {[%emt 00:03:49]} Rxd2 {[%clk
00:41:20]} {[%emt 00:00:08]} 22. Kxd2 {[%clk 00:06:31]} {[%emt 00:00:51]} Kc7
{[%clk 00:41:30]} {[%emt 00:00:21]} 23. g3 {[%clk 00:05:31]} {[%emt 00:01:29]}
Nd5 {[%clk 00:39:42]} {[%emt 00:02:18]} 24. Nd4 {[%clk 00:05:50]} {[%emt
00:00:11]} e5 {[%clk 00:38:14]} {[%emt 00:01:58]} 25. Nf5 {[%clk 00:04:11]}
{[%emt 00:02:09]} g6 {[%clk 00:18:30]} {[%emt 00:20:14]} 26. Ne3 {[%clk
00:04:36]} {[%emt 00:00:04]} Nxe3 {[%clk 00:18:48]} {[%emt 00:00:12]} 27. Kxe3
{[%clk 00:05:05]} {[%emt 00:00:02]} Rf8 {[%clk 00:19:12]} {[%emt 00:00:06]} 28.
Rd1 {[%clk 00:04:39]} {[%emt 00:00:56]} f5 {[%clk 00:18:18]} {[%emt 00:01:25]}
29. Ng5 {[%clk 00:04:23]} {[%emt 00:00:45]} Bc8 {[%clk 00:12:41]} {[%emt
00:06:07]} 30. Rd2 {[%clk 00:03:50]} {[%emt 00:01:03]} h6 {[%clk 00:12:58]}
{[%emt 00:00:13]} 31. Nf3 {[%clk 00:03:58]} {[%emt 00:00:22]} f4+ {[%clk
00:13:20]} {[%emt 00:00:08]} 32. gxf4 {[%clk 00:03:54]} {[%emt 00:00:35]} exf4+
{[%clk 00:13:45]} {[%emt 00:00:04]} 33. Kf2 {[%clk 00:03:58]} {[%emt 00:00:27]}
g5 {[%clk 00:13:52]} {[%emt 00:00:22]} 34. Rd4 {[%clk 00:02:57]} {[%emt
00:01:31]} Re8 {[%clk 00:12:59]} {[%emt 00:01:23]} 35. c4 {[%clk 00:01:50]}
{[%emt 00:01:37]} Re3 {[%clk 00:12:38]} {[%emt 00:00:50]} 36. b4 {[%clk
00:01:26]} {[%emt 00:00:55]} Bg4 {[%clk 00:11:52]} {[%emt 00:01:15]} 37. Ng1
{[%clk 00:01:06]} {[%emt 00:00:50]} Rc3 {[%clk 00:12:18]} {[%emt 00:00:04]} 38.
h4 {[%clk 00:01:11]} {[%emt 00:00:25]} Rc2+ {[%clk 00:12:12]} {[%emt 00:00:36]}
39. Kf1 {[%clk 00:01:33]} {[%emt 00:00:08]} Be6 {[%clk 00:11:49]} {[%emt
00:00:53]} 40. c5 {[%clk 00:31:28]} {[%emt 00:00:35]} bxc5 {[%clk 00:39:37]}
{[%emt 00:02:42]} 41. bxc5 {[%clk 00:31:37]} {[%emt 00:00:21]} Rxc5 {[%clk
00:36:26]} {[%emt 00:03:42]} 42. hxg5 {[%clk 00:29:23]} {[%emt 00:02:44]} hxg5
{[%clk 00:36:53]} {[%emt 00:00:02]} 43. Nf3 {[%clk 00:27:02]} {[%emt 00:02:51]}
Rc1+ {[%clk 00:26:39]} {[%emt 00:10:45]} 44. Kf2 {[%clk 00:24:31]} {[%emt
00:02:59]} Rc2+ {[%clk 00:26:43]} {[%emt 00:00:26]} 45. Kg1 {[%clk 00:19:37]}
{[%emt 00:05:24]} g4 {[%clk 00:25:23]} {[%emt 00:01:51]} 46. Rxf4 {[%clk
00:20:01]} {[%emt 00:00:05]} gxf3 {[%clk 00:25:49]} {[%emt 00:00:04]} 47. Rxf3
{[%clk 00:20:25]} {[%emt 00:00:06]} Kd6 {[%clk 00:26:16]} {[%emt 00:00:04]} 48.
Rf2 {[%clk 00:20:07]} {[%emt 00:00:47]} Rc3 {[%clk 00:26:41]} {[%emt 00:00:04]}
49. Re2 {[%clk 00:18:37]} {[%emt 00:02:00]} Bg4 {[%clk 00:25:48]} {[%emt
00:01:23]} 50. Rb2 {[%clk 00:15:35]} {[%emt 00:03:32]} Ke5 {[%clk 00:25:39]}
{[%emt 00:00:40]} 51. Kf2 {[%clk 00:15:41]} {[%emt 00:00:24]} Be6 {[%clk
00:26:06]} {[%emt 00:00:04]} 52. Re2+ {[%clk 00:14:41]} {[%emt 00:01:30]} Kf5
{[%clk 00:26:24]} {[%emt 00:00:13]} 53. Re3 {[%clk 00:14:35]} {[%emt 00:00:35]}
Rc6 {[%clk 00:26:26]} {[%emt 00:00:28]} 54. Ke2 {[%clk 00:12:45]} {[%emt
00:02:20]} Kf4 {[%clk 00:25:07]} {[%emt 00:01:49]} 55. Rf3+ {[%clk 00:12:40]}
{[%emt 00:00:35]} Kg4 {[%clk 00:25:23]} {[%emt 00:00:14]} 56. Rf8 {[%clk
00:12:32]} {[%emt 00:00:37]} Rc3 {[%clk 00:25:18]} {[%emt 00:00:35]} 57. Kd2
{[%clk 00:12:38]} {[%emt 00:00:25]} Rh3 {[%clk 00:25:25]} {[%emt 00:00:23]} 58.
a4 {[%clk 00:11:41]} {[%emt 00:01:28]} Bf5 {[%clk 00:25:34]} {[%emt 00:00:21]}
59. a5 {[%clk 00:11:48]} {[%emt 00:00:22]} Kf4 {[%clk 00:25:54]} {[%emt
00:00:10]} 60. a6 {[%clk 00:10:10]} {[%emt 00:02:07]} Ra3 {[%clk 00:26:22]}
{[%emt 00:00:03]} 61. a7 {[%clk 00:10:03]} {[%emt 00:00:36]} Rxa7 {[%clk
00:26:47]} {[%emt 00:00:06]} 62. Kc3 {[%clk 00:10:03]} {[%emt 00:00:29]} Ke5
{[%clk 00:27:12]} {[%emt 00:00:06]} 63. Re8+ {[%clk 00:09:13]} {[%emt
00:01:20]} Kd5 {[%clk 00:27:21]} {[%emt 00:00:22]} 64. Rd8+ {[%clk 00:08:19]}
{[%emt 00:01:23]} Kc5 {[%clk 00:27:48]} {[%emt 00:00:03]} 65. Kd2 {[%clk
00:08:22]} {[%emt 00:00:26]} Ra3 {[%clk 00:28:13]} {[%emt 00:00:06]} 66. Rf8
{[%clk 00:07:56]} {[%emt 00:00:55]} Be4 {[%clk 00:28:39]} {[%emt 00:00:05]} 67.
Rf7 {[%clk 00:02:56]} {[%emt 00:05:30]} Kd4 {[%clk 00:28:52]} {[%emt 00:00:16]}
68. Rf2 {[%clk 00:02:51]} {[%emt 00:00:36]} Bf3 {[%clk 00:29:01]} {[%emt
00:00:22]} 69. Ke1 {[%clk 00:02:48]} {[%emt 00:00:32]} Ke4 {[%clk 00:29:17]}
{[%emt 00:00:14]} 70. Kd2 {[%clk 00:02:00]} {[%emt 00:01:18]} Rd3+ {[%clk
00:29:41]} {[%emt 00:00:06]} 71. Kc2 {[%clk 00:02:01]} {[%emt 00:00:29]} Bd1+
{[%clk 00:30:05]} {[%emt 00:00:06]} 72. Kb2 {[%clk 00:00:52]} {[%emt 00:01:39]}
Rb3+ {[%clk 00:30:31]} {[%emt 00:00:04]} 73. Kc1 {[%clk 00:01:11]} {[%emt
00:00:11]} Ke3 {[%clk 00:30:48]} {[%emt 00:00:13]} 74. Rb2 {[%clk 00:00:55]}
{[%emt 00:00:46]} Rd3 {[%clk 00:31:15]} {[%emt 00:00:02]} 75. Rb8 {[%clk
00:00:49]} {[%emt 00:00:36]} Bb3 {[%clk 00:31:20]} {[%emt 00:00:25]} 76. Kb2
{[%clk 00:00:51]} {[%emt 00:00:30]} Bd5 {[%clk 00:31:45]} {[%emt 00:00:05]} 77.
Kc2 {[%clk 00:00:38]} {[%emt 00:00:43]} Kd4 {[%clk 00:32:07]} {[%emt 00:00:08]}
78. Rd8 {[%clk 00:00:42]} {[%emt 00:00:27]} Ra3 {[%clk 00:32:29]} {[%emt
00:00:07]} 79. Kd2 {[%clk 00:00:42]} {[%emt 00:00:30]} Ra2+ {[%clk 00:32:55]}
{[%emt 00:00:04]} 80. Kd1 {[%clk 00:00:49]} {[%emt 00:00:22]} Rh2 {[%clk
00:33:23]} {[%emt 00:00:04]} 81. Rd6 {[%clk 00:00:54]} {[%emt 00:00:25]} Ke4
{[%clk 00:33:20]} {[%emt 00:00:33]} 82. Rd8 {[%clk 00:00:52]} {[%emt 00:00:32]}
Bb3+ {[%clk 00:32:01]} {[%emt 00:01:49]} 83. Kc1 {[%clk 00:00:51]} {[%emt
00:00:32]} Ke3 {[%clk 00:32:24]} {[%emt 00:00:06]} 84. Rd7 {[%clk 00:00:44]}
{[%emt 00:00:37]} Bc2 {[%clk 00:32:16]} {[%emt 00:00:38]} 0-1

[Event "Mitropa Cup 2023 Open selection"]
[Site "Mali Losinj, Croatia"]
[Date "2023.04.11"]
[Round "1.4"]
[White "Droin, Augustin"]
[Black "Arcuti, Davide"]
[Result "1/2-1/2"]
[TimeControl "90 min + 30 min after 40 moves + 30 sec increment from move 1"]
[WhiteElo "2436"]
[BlackElo "2359"]

1. e4 {[%clk 01:30:57]} {[%emt 00:00:02]} e5 {[%clk 01:30:38]} {[%emt
00:00:22]} 2. Nf3 {[%clk 01:31:22]} {[%emt 00:00:05]} Nc6 {[%clk 01:30:51]}
{[%emt 00:00:17]} 3. Bb5 {[%clk 01:31:38]} {[%emt 00:00:13]} a6 {[%clk
01:30:54]} {[%emt 00:00:27]} 4. Ba4 {[%clk 01:32:01]} {[%emt 00:00:08]} Nf6
{[%clk 01:31:10]} {[%emt 00:00:15]} 5. O-O {[%clk 01:32:24]} {[%emt 00:00:07]}
Be7 {[%clk 01:31:23]} {[%emt 00:00:16]} 6. Re1 {[%clk 01:32:49]} {[%emt
00:00:06]} b5 {[%clk 01:31:24]} {[%emt 00:00:29]} 7. Bb3 {[%clk 01:33:13]}
{[%emt 00:00:06]} O-O {[%clk 01:31:20]} {[%emt 00:00:34]} 8. a4 {[%clk
01:33:37]} {[%emt 00:00:06]} Bb7 {[%clk 01:30:08]} {[%emt 00:01:42]} 9. d3
{[%clk 01:33:59]} {[%emt 00:00:08]} d6 {[%clk 01:28:25]} {[%emt 00:02:13]} 10.
Bd2 {[%clk 01:32:20]} {[%emt 00:02:09]} Qd7 {[%clk 01:26:42]} {[%emt 00:02:13]}
11. Nc3 {[%clk 01:32:00]} {[%emt 00:00:51]} Na5 {[%clk 01:22:45]} {[%emt
00:04:26]} 12. Ba2 {[%clk 01:32:22]} {[%emt 00:00:07]} b4 {[%clk 01:21:51]}
{[%emt 00:01:25]} 13. Ne2 {[%clk 01:26:59]} {[%emt 00:05:54]} c5 {[%clk
01:21:15]} {[%emt 00:01:06]} 14. Ng3 {[%clk 01:26:54]} {[%emt 00:00:35]} Bc8
{[%clk 01:19:06]} {[%emt 00:02:39]} 15. c3 {[%clk 01:22:42]} {[%emt 00:04:42]}
bxc3 {[%clk 01:05:48]} {[%emt 00:13:49]} 16. bxc3 {[%clk 01:23:03]} {[%emt
00:00:09]} Qc7 {[%clk 01:04:56]} {[%emt 00:01:21]} 17. d4 {[%clk 01:12:51]}
{[%emt 00:10:42]} Rb8 {[%clk 00:57:55]} {[%emt 00:07:31]} 18. dxe5 {[%clk
01:07:20]} {[%emt 00:06:01]} dxe5 {[%clk 00:57:49]} {[%emt 00:00:37]} 19. Qe2
{[%clk 01:07:27]} {[%emt 00:00:23]} c4 {[%clk 00:54:00]} {[%emt 00:04:19]} 20.
h3 {[%clk 00:54:48]} {[%emt 00:13:09]} Rd8 {[%clk 00:49:09]} {[%emt 00:05:19]}
21. Rab1 {[%clk 00:48:50]} {[%emt 00:06:28]} Nb3 {[%clk 00:46:08]} {[%emt
00:03:31]} 22. Bxb3 {[%clk 00:39:10]} {[%emt 00:10:10]} cxb3 {[%clk 00:43:51]}
{[%emt 00:02:47]} 23. Nf5 {[%clk 00:37:40]} {[%emt 00:02:00]} h6 {[%clk
00:31:03]} {[%emt 00:13:18]} 24. Nxe7+ {[%clk 00:34:23]} {[%emt 00:03:47]} Qxe7
{[%clk 00:31:31]} {[%emt 00:00:02]} 25. c4 {[%clk 00:34:40]} {[%emt 00:00:13]}
Nd7 {[%clk 00:26:33]} {[%emt 00:05:28]} 26. Ba5 {[%clk 00:30:09]} {[%emt
00:05:01]} Re8 {[%clk 00:25:30]} {[%emt 00:01:33]} 27. Nd2 {[%clk 00:29:03]}
{[%emt 00:01:36]} Nc5 {[%clk 00:20:27]} {[%emt 00:05:33]} 28. Qe3 {[%clk
00:29:08]} {[%emt 00:00:26]} Bd7 {[%clk 00:19:50]} {[%emt 00:01:07]} 29. Nxb3
{[%clk 00:28:34]} {[%emt 00:01:04]} Nxb3 {[%clk 00:19:37]} {[%emt 00:00:42]} 30.
Rxb3 {[%clk 00:28:59]} {[%emt 00:00:05]} Bxa4 {[%clk 00:19:16]} {[%emt
00:00:50]} 31. Rd3 {[%clk 00:25:05]} {[%emt 00:04:24]} Rec8 {[%clk 00:17:58]}
{[%emt 00:01:48]} 32. Rc1 {[%clk 00:23:34]} {[%emt 00:02:02]} Qg5 {[%clk
00:11:53]} {[%emt 00:06:35]} 33. Qe1 {[%clk 00:19:03]} {[%emt 00:05:01]} Rb3
{[%clk 00:09:21]} {[%emt 00:03:02]} 34. Rxb3 {[%clk 00:18:56]} {[%emt
00:00:37]} Bxb3 {[%clk 00:09:50]} {[%emt 00:00:01]} 35. c5 {[%clk 00:18:47]}
{[%emt 00:00:39]} Rc6 {[%clk 00:07:27]} {[%emt 00:02:52]} 36. Rc3 {[%clk
00:19:07]} {[%emt 00:00:10]} Ba4 {[%clk 00:06:05]} {[%emt 00:01:52]} 37. Bb6
{[%clk 00:17:10]} {[%emt 00:02:27]} Rg6 {[%clk 00:04:37]} {[%emt 00:01:58]} 38.
Rg3 {[%clk 00:17:08]} {[%emt 00:00:33]} Qf6 {[%clk 00:03:46]} {[%emt 00:01:20]}
39. Rxg6 {[%clk 00:16:34]} {[%emt 00:01:04]} Qxg6 {[%clk 00:03:42]} {[%emt
00:00:33]} 40. f3 {[%clk 00:46:54]} {[%emt 00:00:10]} Bd7 {[%clk 00:31:03]}
{[%emt 00:03:09]} 41. Kh2 {[%clk 00:44:35]} {[%emt 00:02:49]} Bb5 {[%clk
00:30:08]} {[%emt 00:01:24]} 42. Bc7 {[%clk 00:43:22]} {[%emt 00:01:43]} Qc6
{[%clk 00:24:44]} {[%emt 00:05:55]} 43. Bxe5 {[%clk 00:42:26]} {[%emt
00:01:27]} Qxc5 {[%clk 00:25:04]} {[%emt 00:00:10]} 44. Qg3 {[%clk 00:42:54]}
{[%emt 00:00:02]} Qf8 {[%clk 00:25:10]} {[%emt 00:00:23]} 45. Bc3 {[%clk
00:42:27]} {[%emt 00:00:58]} f6 {[%clk 00:24:27]} {[%emt 00:01:13]} 46. e5
{[%clk 00:42:18]} {[%emt 00:00:39]} fxe5 {[%clk 00:24:28]} {[%emt 00:00:29]} 47.
Qxe5 {[%clk 00:42:44]} {[%emt 00:00:04]} Qf7 {[%clk 00:24:09]} {[%emt
00:00:50]} 48. f4 {[%clk 00:41:23]} {[%emt 00:01:51]} Bc6 {[%clk 00:22:48]}
{[%emt 00:01:50]} 49. f5 {[%clk 00:41:47]} {[%emt 00:00:07]} Kh7 {[%clk
00:19:22]} {[%emt 00:03:55]} 50. g4 {[%clk 00:39:31]} {[%emt 00:02:47]} a5
{[%clk 00:15:06]} {[%emt 00:04:46]} 51. Kg3 {[%clk 00:34:37]} {[%emt 00:05:24]}
a4 {[%clk 00:10:37]} {[%emt 00:04:59]} 52. h4 {[%clk 00:33:56]} {[%emt
00:01:11]} Bd7 {[%clk 00:09:59]} {[%emt 00:01:08]} 53. Kf4 {[%clk 00:29:01]}
{[%emt 00:05:25]} Qc4+ {[%clk 00:06:19]} {[%emt 00:04:09]} 54. Bd4 {[%clk
00:29:11]} {[%emt 00:00:20]} Qf1+ {[%clk 00:06:16]} {[%emt 00:00:33]} 55. Kg3
{[%clk 00:29:35]} {[%emt 00:00:06]} Qd3+ {[%clk 00:06:33]} {[%emt 00:00:13]} 56.
Kf4 {[%clk 00:29:51]} {[%emt 00:00:14]} Qf1+ {[%clk 00:06:37]} {[%emt
00:00:26]} 57. Kg3 {[%clk 00:29:42]} {[%emt 00:00:05]} 1/2-1/2